[Event "LEM Niedersachsen-Meister 2025"]
[Site "Verden"]
[Date "2025.01.05"]
[Round "7.7"]
[White "Pubantz, Jan"]
[Black "Mueer, Sebastian"]
[Result "1-0"]
[ECO "D30"]
[WhiteElo "2339"]
[BlackElo "2175"]
[Annotator "TA"]
[PlyCount "63"]
[EventDate "2024.12.27"]
[EventType "swiss"]
[EventCountry "GER"]
[SourceTitle "playchess.com"]
[Source "ChessBase"]
[SourceQuality "1"]
[TimeControl "40/5400+30:1800+30"]

{[%evp 17,63,27,39,15,41,36,36,1,8,5,0,2,37,31,55,66,85,77,133,132,180,180,180,141,141,142,142,111,169,174,173,173,214,203,222,203,241,241,241,247,254,245,242,231,337,327,289,304]} 1. d4 {[%emt 0:05:02]} Nf6 {[%emt 0:00:38]} 2. Nf3 {[%emt 0:00:13]} d5 {[%emt 0:00:28]} 3. g3 {[%emt 0:01:22]} e6 {[%emt 0:02:36]} 4. Bg2 {[%emt 0:00:09]} c5 {[%emt 0:03:46]} 5. c4 {[%emt 0:04:03]} cxd4 {[%emt 0:04:02]} 6. O-O {[%emt 0:01:28]} Bc5 {[%emt 0:07:12]} 7. Nxd4 {[%emt 0:14:21]} Nc6 {[%emt 0:03:28]} 8. Nb3 {[%emt 0:06:14]} Bb6 {[%emt 0:01:12]} 9. cxd5 {[%emt 0:01:33]} exd5 {[%emt 0:00:27][%cal Be6d5,Bd5d4][%mdl 32]} 10. Nc3 {[%emt 0:03:40][%cal Oc1g5]} d4 $1 {[%emt 0:08:02]} 11. Na4 {[%emt 0:01:07]} O-O {[%emt 0:07:38]} 12. Nxb6 {[%emt 0:08:44]} axb6 {[%emt 0:05:31]} 13. Bxc6 {[%emt 0:02:49]} bxc6 {[%emt 0:00:03]} 14. Qxd4 {[%emt 0:00:23]} Bg4 {[%emt 0:10:07]} 15. f3 {[%emt 0:02:15]} Be6 {[%emt 0:04:37] and ...Bxb3 would now be decisive} 16. Bg5 {[%emt 0:15:44]} Bxb3 {[%emt 0:07:35]} 17. Qxd8 {[%emt 0:00:23]} Rfxd8 {[%emt 0:00:30]} (17... Raxd8 $142 18. axb3 Rd5) 18. axb3 $16 {[%emt 0:00:11]} h6 {[%emt 0:00:34]} (18... Rac8 $16 19. Rfd1 Rd5 20. Rxd5 Nxd5) 19. Bxf6 $18 {[%emt 0:01:55]} gxf6 {[%emt 0:00:02]} 20. Kf2 {[%emt 0:01:11]} Rxa1 {[%emt 0:03:37]} 21. Rxa1 $16 {[%emt 0:00:01][%mdl 4096] Endgame KR-KR. White is a pawn up.} Rd2 {[%emt 0:00:12]} 22. Rb1 {[%emt 0:03:40]} c5 {[%emt 0:04:28]} (22... h5 $16 23. Ke1 Rd5) 23. Ke1 $18 {[%emt 0:00:32]} Rd4 {[%emt 0:00:15]} 24. Rc1 {[%emt 0:01:53]} Rb4 {[%emt 0:01:10]} 25. Rc3 {[%emt 0:00:07]} f5 {[%emt 0:00:23]} 26. Kd2 {[%emt 0:00:52]} Kg7 {[%emt 0:00:39] [#]} 27. Kc2 $1 {[%emt 0:00:34]} Rd4 {[%emt 0:04:43] [#]} 28. Rd3 $1 {[%emt 0:01:00] and Rxd4 should not be overlooked} Rb4 {[%emt 0:00:31]} 29. Kc3 {[%emt 0:01:39]} h5 {[%emt 0:00:16]} 30. e3 {[%emt 0:02:03]} h4 {[%emt 0:00:33]} (30... Rb5 {was necessary.} 31. Rd5 Kg6 32. Rd6+ f6) 31. Rd1 {[%emt 0:01:19]} h3 {[%emt 0:03:11]} 32. Ra1 {[%emt 0:01:37]} 1-0

[Event "LEM Niedersachsen-Meister 2025"]
[Site "Verden"]
[Date "2025.01.05"]
[Round "7.8"]
[White "Stelmaszyk, Nico"]
[Black "Meiwes, Thore"]
[Result "1/2-1/2"]
[ECO "B51"]
[WhiteElo "2403"]
[BlackElo "2120"]
[Annotator "TA"]
[PlyCount "94"]
[EventDate "2024.12.27"]
[EventType "swiss"]
[EventCountry "GER"]
[SourceTitle "playchess.com"]
[Source "ChessBase"]
[SourceQuality "1"]
[TimeControl "40/5400+30:1800+30"]

{[%evp 10,94,24,28,31,18,44,30,53,47,47,44,42,48,41,26,32,31,27,21,53,29,43,56,80,27,68,26,45,56,118,55,68,59,117,131,211,147,187,178,250,227,208,202,228,195,416,451,449,458,357,379,446,247,233,168,189,183,132,47,232,0,0,0,0,0,34,0,0,0,0,-64,-64,-64,-64,-64,-64,-71,-71,-71,0,0,0,-81,0,0,0]} 1. e4 {[%emt 0:00:03]} c5 {[%emt 0:00:04]} 2. Nf3 {[%emt 0:00:06]} Nc6 {[%emt 0:00:07]} 3. Bb5 {[%emt 0:00:04]} d6 {[%emt 0:00:10]} 4. O-O {[%emt 0:00:06]} Bd7 {[%emt 0:00:07]} 5. Re1 {[%emt 0:00:05]} Nf6 {[%emt 0:00:06]} 6. c3 {[%emt 0:00:06]} a6 {[%emt 0:00:04]} 7. Bc4 {[%emt 0:00:17]} e6 {[%emt 0:06:08]} 8. d4 {[%emt 0:00:07]} b5 {[%emt 0:04:18]} 9. Bf1 {[%emt 0:02:28]} cxd4 {[%emt 0:03:50]} 10. cxd4 {[%emt 0:00:06]} d5 {[%emt 0:04:37]} 11. e5 {[%emt 0:12:15]} Ne4 {[%emt 0:00:15]} 12. Nbd2 {[%emt 0:02:11]} Nxd2 {[%emt 0:00:38]} 13. Bxd2 {[%emt 0:00:06]} Qb6 {[%emt 0:05:58]} 14. Be3 {[%emt 0:02:46]} Bb4 {[%emt 0:00:37]} 15. Re2 {[%emt 0:00:56]} h6 {[%emt 0:00:41]} 16. Rc2 {[%emt 0:03:50]} Be7 {[%emt 0:00:23]} 17. h4 {[%emt 0:02:40]} (17. Ne1 $16) 17... a5 {[%emt 0:03:31]} 18. h5 {[%emt 0:01:37]} a4 {[%emt 0:01:49]} 19. Ne1 {[%emt 0:01:46]} a3 {[%emt 0:03:58] [#]} (19... O-O $14) 20. b3 {[%emt 0:02:12]} ({White should try} 20. Qg4 $1 $16 {[%cal Rg4g7]} axb2 21. Rxb2) 20... Nb4 {[%emt 0:01:49]} 21. Rd2 {[%emt 0:01:59]} (21. Qg4 $5 Nxc2 22. Qxg7 $17 (22. Nxc2 Kf8 $15)) 21... Rg8 {[%emt 0:08:10]} ({Black should play} 21... O-O $14) 22. Rc1 $36 {[%emt 0:05:32][%mdl 2048] White is in control.} Bc6 {[%emt 0:04:06]} (22... Rc8 $16 23. Rxc8+ Bxc8) 23. Qf3 {[%emt 0:05:20]} Bb7 {[%emt 0:03:42]} 24. Nd3 {[%emt 0:04:13]} Nxd3 {[%emt 0:01:06]} (24... Rc8 25. Nc5 Bc6) 25. Bxd3 $18 {[%emt 0:00:08]} (25. Rxd3 b4 26. Rdd1 Ba6) 25... Rc8 {[%emt 0:00:15]} 26. Rdc2 {[%emt 0:02:53]} Rxc2 {[%emt 0:00:16]} 27. Rxc2 {[%emt 0:00:04]} Bc6 $2 {[%emt 0:04:12]} (27... b4 {was called for.} 28. Qe2 Kf8) 28. Qg4 {[%emt 0:01:36]} Kf8 {[%emt 0:05:28]} 29. f4 {[%emt 0:00:10][%cal Bf2f4,Bf4f5][%mdl 32]} Bd7 {[%emt 0:04:09]} 30. f5 {[%emt 0:02:01][%cal Of5f6]} Rh8 {[%emt 0:12:51]} 31. Qf3 {[%emt 0:06:24]} (31. Rf2 $142 {and f6 would now be decisive} f6 32. b4) 31... Bg5 {[%emt 0:02:56]} 32. Bxg5 {[%emt 0:01:57]} hxg5 {[%emt 0:00:10]} 33. Rc5 {[%emt 0:00:13]} Qa5 {[%emt 0:01:46]} 34. Qe2 {[%emt 0:09:36] Wards off Qe1+. White is more active.} (34. fxe6 $16 Bxe6 35. b4 (35. Bxb5 Qd2 $11) (35. Rxb5 Qe1+ 36. Bf1 g4 $16) 35... Qxb4 36. Qe3) 34... Qb4 $2 {[%emt 0:01:39]} (34... g4 $1 $14) 35. Qf2 $2 {[%emt 0:08:59]} (35. Bxb5 Qxd4+ 36. Qf2 Qd1+ (36... Qxe5 37. Bxd7 Qa1+ 38. Qf1 $11) 37. Bf1 exf5 $17 (37... Qxh5 38. Qg3 $19)) ({White has to play} 35. Qe3 $18 exf5 36. Rxd5 (36. Qxg5 $2 Qxd4+ 37. Kf1 Qxc5 $19)) 35... Rxh5 $11 {[%emt 0:00:13]} 36. fxe6 {[%emt 0:05:36]} (36. Rc7 $5 Ke8 $8 37. fxe6 Bxe6 38. g3 $17) 36... Bxe6 {[%emt 0:00:16]} 37. g3 {[%emt 0:02:26][%cal Od3g6] Dodges Rh4} ({Don't play} 37. Bxb5 Rh4 38. Bd3 Rf4 $19 (38... Rxd4 $2 39. Rb5 $18) (38... Qxd4 $2 39. Qxd4 Rxd4 40. Rc3 $19)) 37... g4 {[%emt 0:07:50]} 38. Qe3 {[%emt 0:02:12]} (38. Rxb5 $2 Qc3 39. Rb8+ Ke7 $19) (38. Kg2 $5) 38... g6 $1 {[%emt 0:04:37]} 39. Bxb5 {[%emt 0:09:48]} (39. Rxb5 $2 {too greedy.} Qc3 40. Rc5 Qa1+ 41. Rc1 Qxa2 $19) 39... Bf5 {[%emt 0:03:20]} 40. Qc3 {[%emt 0:05:05]} (40. Rxd5 $11 Kg7 41. Bf1) 40... Qxc3 $15 {[%emt 0:00:25]} 41. Rxc3 {[%emt 0:30:05][%mdl 4096] Endgame KRB-KRB} Be4 $1 {[%emt 0:30:21]} 42. Rc8+ {[%emt 0:00:00]} Kg7 {[%emt 0:00:00]} 43. Rc7 {[%emt 0:00:00]} Rh1+ {[%emt 0:00:00]} 44. Kf2 {[%emt 0:00:00]} Kf8 {[%emt 0:00:00]} 45. Rc8+ {[%emt 0:00:00]} Kg7 {[%emt 0:00:00] Strongly threatening ...Rh2+.} 46. Rc7 $1 {[%emt 0:00:00]} Kf8 {[%emt 0:00:00]} (46... Bf5 $17 47. Be8 Kf8) 47. Rc8+ $11 {[%emt 0:00:00]} Kg7 {[%emt 0:00:00]} 1/2-1/2

[Event "LEM Niedersachsen-Meister 2025"]
[Site "Verden"]
[Date "2025.01.05"]
[Round "7.9"]
[White "Peters, Tom"]
[Black "Plischki, Sebastian"]
[Result "1/2-1/2"]
[ECO "B67"]
[WhiteElo "2166"]
[BlackElo "2323"]
[Annotator "TA"]
[PlyCount "71"]
[EventDate "2024.12.27"]
[EventType "swiss"]
[EventCountry "GER"]
[SourceTitle "playchess.com"]
[Source "ChessBase"]
[SourceQuality "1"]
[TimeControl "40/5400+30:1800+30"]

{[%evp 23,71,2,12,0,0,0,0,0,0,-26,0,-39,-10,-16,-13,-51,-60,-82,-42,-28,0,-7,0,0,9,0,0,0,0,0,0,0,0,0,0,0,227,0,33,29,145,166,437,385,383,327,406,404,348,127]} 1. e4 {[%emt 0:00:03]} c5 {[%emt 0:00:31]} 2. Nf3 {[%emt 0:00:07]} d6 {[%emt 0:00:08]} 3. d4 {[%emt 0:00:06]} cxd4 {[%emt 0:00:06]} 4. Nxd4 {[%emt 0:00:06]} Nf6 {[%emt 0:00:10]} 5. Nc3 {[%emt 0:00:12]} Bd7 {[%emt 0:00:15]} 6. Bg5 {[%emt 0:01:07]} e6 {[%emt 0:01:15]} 7. Qd2 {[%emt 0:04:14]} a6 {[%emt 0:02:20]} 8. f4 {[%emt 0:02:57]} h6 {[%emt 0:01:20]} 9. Bxf6 {[%emt 0:01:56]} Qxf6 {[%emt 0:00:08]} 10. O-O-O {[%emt 0:00:51]} Nc6 {[%emt 0:03:00]} 11. Nf3 {[%emt 0:11:06]} Qd8 {[%emt 0:07:14]} 12. Kb1 {[%emt 0:08:19]} Qc7 {[%emt 0:02:53]} 13. g4 {[%emt 0:06:37]} O-O-O {[%emt 0:00:45]} 14. Bd3 {[%emt 0:08:08]} Kb8 {[%emt 0:00:51]} 15. h4 {[%emt 0:04:03]} Bc8 {[%emt 0:02:16]} 16. Ne2 {[%emt 0:04:13]} Be7 {[%emt 0:07:03]} 17. Rdg1 {[%emt 0:04:58]} b5 {[%emt 0:05:34]} 18. g5 {[%emt 0:03:38]} Bb7 {[%emt 0:01:52]} 19. Nfd4 {[%emt 0:06:47]} Nxd4 {[%emt 0:01:25]} 20. Nxd4 {[%emt 0:00:05]} hxg5 {[%emt 0:00:36]} 21. hxg5 {[%emt 0:00:20]} g6 {[%emt 0:00:23]} 22. Nb3 {[%emt 0:06:41]} Qb6 {[%emt 0:12:28]} 23. Rf1 {[%emt 0:02:05]} Rc8 {[%emt 0:06:55]} 24. Rh6 {[%emt 0:04:43]} d5 {[%emt 0:09:10]} 25. e5 {[%emt 0:06:20]} Rxh6 {[%emt 0:00:18]} 26. gxh6 {[%emt 0:00:04]} Rh8 {[%emt 0:00:21]} 27. Rh1 {[%emt 0:03:15]} Rh7 {[%emt 0:01:37]} 28. Qg2 {[%emt 0:00:50][%cal Od3g6] Strongly threatening Bxg6!.} d4 {[%emt 0:15:34]} 29. Be4 $36 {[%emt 0:00:05][%mdl 2048] White has good play.} Bf8 $2 {[%emt 0:04:25] [#]} (29... Bxe4 $11 {and Black has nothing to worry.} 30. Qxe4 Qb7) 30. Nxd4 $2 {[%emt 0:01:37]} Rxh6 {[%emt 0:00:16] and ...Bxe4 would now be decisive} 31. Rd1 {[%emt 0:00:39]} Bxe4 {[%emt 0:05:49]} (31... Rh8 $11) 32. Qxe4 $16 {[%emt 0:00:05]} Bc5 $2 {[%emt 0:00:28]} (32... Qb7 33. Nc6+ Kc7) 33. Nc6+ $18 {[%emt 0:01:59]} Kc7 {[%emt 0:00:30]} 34. Nd8 {[%emt 0:00:19]} Rh7 {[%emt 0:03:23]} 35. b4 {[%emt 0:00:24]} Be7 {[%emt 0:01:35]} 36. Qd3 $2 {[%emt 0:09:31] Inhibits Rh3.} (36. Qa8 $18 {has better winning chances.}) 1/2-1/2

[Event "LEM Niedersachsen-Meister 2025"]
[Site "Verden"]
[Date "2025.01.05"]
[Round "7.10"]
[White "Sreyas Payyappat"]
[Black "Hoeffer, David"]
[Result "0-1"]
[ECO "C54"]
[WhiteElo "2115"]
[BlackElo "2322"]
[Annotator "TA"]
[PlyCount "82"]
[EventDate "2024.12.27"]
[EventType "swiss"]
[EventCountry "GER"]
[SourceTitle "playchess.com"]
[Source "ChessBase"]
[SourceQuality "1"]
[TimeControl "40/5400+30:1800+30"]

{[%evp 15,82,19,12,2,10,0,10,0,18,-4,76,-27,-25,-32,-37,-31,-29,-37,-35,-39,-31,-39,-16,-21,-13,-21,-5,-44,-32,-83,-64,-63,-68,-100,-104,-125,-127,-130,-130,-148,-147,-150,-116,-325,-198,-207,-202,-219,-238,-237,-236,-225,-244,-275,-259,-317,-320,-313,-312,-312,-308,-29987,-29988,-29994,-29995,-29995,-29986,-29986,-1113]} 1. e4 {[%emt 0:00:02]} e5 {[%emt 0:00:06]} 2. Nf3 {[%emt 0:00:03]} Nc6 {[%emt 0:00:06]} 3. Bc4 {[%emt 0:00:04]} Bc5 {[%emt 0:00:06]} 4. c3 {[%emt 0:00:06]} Nf6 {[%emt 0:00:05]} 5. d4 {[%emt 0:00:09]} exd4 {[%emt 0:00:05]} 6. e5 {[%emt 0:00:07]} d5 {[%emt 0:00:06]} 7. Bb5 {[%emt 0:00:07]} Ne4 {[%emt 0:00:05]} 8. cxd4 {[%emt 0:00:05]} Bb6 {[%emt 0:00:04]} 9. Nc3 {[%emt 0:00:22]} Bg4 {[%emt 0:00:08]} 10. Be3 {[%emt 0:00:17]} O-O {[%emt 0:00:08]} 11. h3 {[%emt 0:00:16]} Bh5 {[%emt 0:00:03]} 12. Qc2 {[%emt 0:00:08]} f5 {[%emt 0:01:38]} (12... Nb4 $11 {keeps the balance.} 13. Qb3 Nxc3 14. bxc3 Nc6) 13. exf6 {[%emt 0:21:46]} (13. Bxc6 $16 bxc6 14. Ne2) 13... Nxf6 $11 {[%emt 0:04:32]} 14. Bxc6 {[%emt 0:02:34]} Bxf3 {[%emt 0:02:50]} 15. Bxb7 {[%emt 0:13:39]} Bxg2 {[%emt 0:04:12]} 16. Rg1 {[%emt 0:00:31]} Rb8 {[%emt 0:00:07]} (16... Bxh3 17. Bxa8 Qxa8 18. O-O-O $11) 17. Rxg2 {[%emt 0:01:18]} Rxb7 {[%emt 0:00:04]} 18. O-O-O {[%emt 0:01:15]} Qd7 {[%emt 0:03:05]} 19. Rdg1 {[%emt 0:08:27]} Rf7 {[%emt 0:00:25][%cal Oc7c6]} 20. h4 {[%emt 0:14:43]} c6 {[%emt 0:02:14]} 21. Rg5 {[%emt 0:06:01]} Qh3 {[%emt 0:02:58]} 22. a3 {[%emt 0:04:20]} ({White should play} 22. Kb1 $15) 22... Bd8 {[%emt 0:09:10][%cal Bb6d8,Bd8e7,Be7d6][%mdl 32]} 23. Qa4 {[%emt 0:05:27]} Qe6 {[%emt 0:05:48]} (23... Qxh4 $6 24. Qxc6 h6 25. Rg6 $11) 24. h5 {[%emt 0:00:46]} Nd7 {[%emt 0:00:44][%cal Bf6d7,Bd7b6,Bb6c4][%mdl 32]} 25. R5g3 {[%emt 0:07:37]} Nb6 {[%emt 0:01:50]} 26. Qc2 {[%emt 0:00:39]} Nc4 $36 {[%emt 0:00:05][%mdl 2048] Black is really pushing.} 27. Na4 {[%emt 0:00:07] and Nc5 should not be overlooked} Be7 {[%emt 0:02:35] Black is more active.} 28. h6 {[%emt 0:00:28][%cal Rg3g7]} Bd6 {[%emt 0:00:24] The board is on fire.} 29. Rg5 $2 {[%emt 0:06:28]} (29. Nc5 $17 Bxc5 30. hxg7 Rxg7 (30... Rxb2 31. Qxh7+ Kxh7 32. g8=Q#) 31. dxc5) 29... Nxe3 {[%emt 0:03:56]} 30. fxe3 {[%emt 0:00:21]} Qxh6 {[%emt 0:00:10] and ...Bh2 would now be decisive} ({Resist} 30... Qxe3+ 31. Kb1) 31. Kb1 {[%emt 0:03:21]} Bxa3 {[%emt 0:00:08]} 32. e4 {[%emt 0:00:37]} Be7 {[%emt 0:06:14]} 33. Re5 {[%emt 0:01:47]} dxe4 {[%emt 0:03:10]} 34. Qxe4 {[%emt 0:01:16]} Qf4 {[%emt 0:03:06]} 35. Qxc6 {[%emt 0:01:13]} Qxd4 {[%emt 0:00:23]} 36. Rge1 {[%emt 0:00:10]} Bf8 {[%emt 0:00:26]} 37. Rd5 {[%emt 0:02:23]} Qb4 {[%emt 0:01:40]} 38. Re8 $2 {[%emt 0:00:00]} (38. Rde5 $19) 38... Rf1+ {[%emt 0:00:14]} 39. Kc2 {[%emt 0:00:00]} Qb3+ {[%emt 0:00:13]} 40. Kd2 {[%emt 0:00:00]} Rd1+ {[%emt 0:00:37]} 41. Ke2 {[%emt 0:30:03]} Qxd5 {[%emt 0:30:05]} (41... Rxd5 $142 42. Qe6+ Rf7 43. Qxd5 Qxd5 44. Nc3 Qg2+ 45. Kd3 Rd7+ (45... Qxb2 46. Rxf8+ Rxf8 47. Ne4 Rf3+ 48. Kc4 Qe5 49. Kb4 Qxe4+ 50. Kc5 Rc3+ 51. Kd6 Kf7 52. Kd7 Qe7#) 46. Kc4 Qf1+ (46... Qxb2 {gets mated.} 47. Nd5 Qa2+ 48. Kd4 Qd2+ 49. Ke4 Rxd5 50. Kf3 Rd3+ 51. Kg4 Qg2+ 52. Kf5 Qf3+ 53. Ke5 Rd5+ 54. Ke6 Qf7#) 47. Kb3 Qf7+ 48. Kc2 Qxe8 49. Kc1 Qe1+ 50. Kc2 Rd2+ 51. Kb3 Qe6+ 52. Nd5 Qxd5+ 53. Ka4 Qc4+ 54. Ka5 Rd5#) 0-1

[Event "LEM Niedersachsen-Meister 2025"]
[Site "Verden"]
[Date "2025.01.05"]
[Round "7.11"]
[White "Bruns, Kai-Christian"]
[Black "Garbuszus, Juergen"]
[Result "0-1"]
[ECO "A80"]
[WhiteElo "2157"]
[BlackElo "2068"]
[Annotator "TA"]
[PlyCount "90"]
[EventDate "2024.12.27"]
[EventType "swiss"]
[EventCountry "GER"]
[SourceTitle "playchess.com"]
[Source "ChessBase"]
[SourceQuality "1"]
[TimeControl "40/5400+30:1800+30"]

{[%evp 19,90,62,62,56,68,36,43,47,35,39,59,59,98,77,69,51,83,38,62,66,87,72,77,56,90,46,28,-1,144,133,131,103,106,66,74,48,114,31,64,0,0,0,0,0,43,0,0,0,0,0,0,-70,-29,-63,0,-62,0,-38,-45,-197,-189,-564,-572,-821,-801,-1567,-1543,-1317,-1074,-1578,-1562,-1402,-1370]} 1. d4 {[%emt 0:00:01]} f5 {[%emt 0:00:59]} 2. Nc3 {[%emt 0:00:05]} Nf6 {[%emt 0:00:23]} 3. Bg5 {[%emt 0:00:06]} d5 {[%emt 0:00:04]} 4. e3 {[%emt 0:00:10]} e6 {[%emt 0:03:06]} 5. Nf3 {[%emt 0:00:15]} Be7 {[%emt 0:02:16]} 6. Bd3 {[%emt 0:02:10]} Nbd7 {[%emt 0:08:19]} 7. O-O {[%emt 0:03:25]} O-O {[%emt 0:06:30]} 8. Ne2 {[%emt 0:04:20]} Ne4 {[%emt 0:05:04]} 9. Bxe7 {[%emt 0:01:55]} Qxe7 {[%emt 0:00:08]} 10. c4 {[%emt 0:02:03]} c6 {[%emt 0:10:38]} 11. Qc2 {[%emt 0:04:45]} g5 {[%emt 0:03:13]} 12. Nd2 {[%emt 0:05:16]} Ndf6 {[%emt 0:06:05]} 13. f3 {[%emt 0:02:38] White is slightly better.} Nxd2 {[%emt 0:05:43]} 14. Qxd2 {[%emt 0:00:02][%cal Oe3e4]} Bd7 {[%emt 0:01:33] [#]} 15. e4 $1 {[%emt 0:05:17]} Nh5 {[%emt 0:04:43]} (15... f4 16. e5) 16. Rae1 {[%emt 0:08:02]} Qg7 {[%emt 0:08:09]} 17. e5 {[%emt 0:03:51]} Qe7 {[%emt 0:00:08]} 18. g4 {[%emt 0:05:39]} Ng7 {[%emt 0:01:57]} 19. c5 {[%emt 0:06:21][%cal Oh2h4]} Be8 {[%emt 0:04:10]} 20. b4 {[%emt 0:05:51]} b6 {[%emt 0:03:12]} 21. a4 {[%emt 0:04:21]} a5 {[%emt 0:02:47]} 22. Ra1 {[%emt 0:05:00]} (22. Rb1 {keeps more tension.} axb4 23. cxb6 c5 24. gxf5 exf5 25. dxc5 Qxc5+ 26. Kh1) 22... axb4 {[%emt 0:05:55]} 23. Qxb4 {[%emt 0:01:10]} (23. cxb6 {with more complications.} c5 24. dxc5 Qxc5+ 25. Kh1) 23... fxg4 {[%emt 0:00:07]} (23... Bg6 $1 $11) 24. fxg4 $16 {[%emt 0:00:06]} Rxf1+ {[%emt 0:00:06]} 25. Rxf1 {[%emt 0:02:21][%cal Ob4b1]} bxc5 {[%emt 0:01:01]} 26. dxc5 {[%emt 0:01:18]} (26. Qb1 {feels hotter.} Bg6 27. Bxg6 hxg6 28. Qxg6 cxd4 29. Ng3) 26... Qc7 {[%emt 0:00:14]} 27. Qd4 {[%emt 0:00:25]} (27. Qb1 {seems wilder.} Bg6 28. Bxg6 hxg6 29. Qxg6 Qa5 30. Qxg5 Qxc5+ 31. Rf2) 27... Ra5 {[%emt 0:02:28]} ({Black should play} 27... Qa5 $14) 28. Rc1 {[%emt 0:08:59]} ({Don't play} 28. Rf6 $6 Qe7 $11) (28. Ra1 $16) 28... Qa7 {[%emt 0:01:43]} 29. Bc2 {[%emt 0:01:17]} ({White should try} 29. Ra1 $1 $14) 29... Bg6 $11 {[%emt 0:00:26] [#] Hoping for ...Bxc2.} 30. Bd1 {[%emt 0:00:58]} Be4 {[%emt 0:05:30]} 31. Qf2 {[%emt 0:04:14]} Qe7 {[%emt 0:01:13]} 32. Rc3 {[%emt 0:01:08]} Ra8 {[%emt 0:01:32][%cal Ba5a8,Ba8f8,Bf8f4][%mdl 32]} 33. Nd4 {[%emt 0:00:44]} Rf8 {[%emt 0:00:46] Prevents Qf6.} 34. Qe3 {[%emt 0:00:55][%cal Od1e2]} ({Not} 34. Nxc6 $2 Qd7 $19) 34... h6 {[%emt 0:03:05]} ({Of course not} 34... Qf7 35. Be2 $14 (35. Nxc6 $2 Qf1#)) 35. Qg3 {[%emt 0:04:44]} (35. Be2 $11) 35... Qc7 {[%emt 0:00:44]} 36. Rb3 {[%emt 0:03:14]} Qe7 {[%emt 0:02:30]} 37. Rc3 $1 {[%emt 0:00:18][%cal Oh2h3]} Qc7 $40 {[%emt 0:00:14][%mdl 128] Black mounts an attack.} ({Better is} 37... Qf7 $15 38. Be2 Qa7) 38. h3 {[%emt 0:03:11]} Rf4 {[%emt 0:00:09][%cal Oc7b8] ...Qb8! is the strong threat.} 39. Qe3 $2 {[%emt 0:02:43] This costs White the game.} (39. Ne2 $1 $15 Rf7 40. Rb3) 39... Qxe5 $19 {[%emt 0:00:24] White must now prevent ...Qf6.} 40. Nxc6 $2 {[%emt 0:00:02]} (40. Rc2) 40... Qf6 {[%emt 0:00:24] Black is clearly winning.} 41. Qe1 {[%emt 0:05:49] Repels Rf1+} d4 {[%emt 0:01:25]} 42. Nxd4 {[%emt 0:03:27]} Qxd4+ {[%emt 0:00:23]} 43. Re3 {[%emt 0:00:04]} Qxc5 {[%emt 0:01:52] And now ...Qd4 would win.} 44. Kh2 {[%emt 0:01:54]} Qd6 {[%emt 0:00:59]} 45. Kg1 {[%emt 0:00:21] Dodges Rf2} Qd4 {[%emt 0:00:13] Weighted Error Value: White=0.82/Black=0.28 (precise) .  Mistake:       	White=5     	Black=3      Inaccurate:     	White=11    	Black=6      OK:         	White=4     	Black=13     Best:        	---       	Black=4      Strong:       	White=1     	---} 0-1

[Event "LEM Niedersachsen-Meister 2025"]
[Site "Verden"]
[Date "2025.01.05"]
[Round "7.12"]
[White "Gaertner, Alessandro"]
[Black "Drygala, Lars"]
[Result "1-0"]
[ECO "E18"]
[WhiteElo "1970"]
[BlackElo "2067"]
[Annotator "NA RC"]
[PlyCount "107"]
[EventDate "2024.12.27"]
[EventType "swiss"]
[EventCountry "GER"]
[SourceTitle "playchess.com"]
[Source "ChessBase"]
[SourceQuality "1"]
[TimeControl "40/5400+30:1800+30"]

1. d4 {[%emt 0:00:06]} e6 {[%emt 0:00:09]} 2. Nf3 {[%emt 0:00:14]} Nf6 {[%emt 0:00:06]} 3. g3 {[%emt 0:00:06]} b6 {[%emt 0:00:42]} 4. Bg2 {[%emt 0:00:08]} Bb7 {[%emt 0:00:06]} 5. O-O {[%emt 0:00:12]} Be7 {[%emt 0:00:17]} 6. c4 {[%emt 0:00:26]} O-O {[%emt 0:01:01]} 7. Nc3 {[%emt 0:00:23]} Ne4 {[%emt 0:03:06]} 8. Bd2 {[%emt 0:00:18]} d5 {[%emt 0:05:09]} 9. cxd5 {[%emt 0:15:56]} Nxc3 {[%emt 0:01:15]} 10. Bxc3 {[%emt 0:02:19]} Bxd5 {[%emt 0:05:05]} 11. Re1 {[%emt 0:11:29]} Be4 {[%emt 0:04:47]} 12. Ne5 {[%emt 0:12:48]} Bxg2 {[%emt 0:02:12]} 13. Kxg2 {[%emt 0:02:23]} Qc8 $14 {[%emt 0:12:57]} 14. e4 {[%emt 0:09:22]} Qb7 {[%emt 0:12:54]} 15. Kg1 {[%emt 0:05:14]} b5 {[%emt 0:10:56]} 16. b3 {[%emt 0:06:57]} Nc6 {[%emt 0:03:33]} 17. Nd3 {[%emt 0:18:09]} Rfd8 {[%emt 0:12:24]} 18. d5 {[%emt 0:02:25]} exd5 {[%emt 0:02:59]} 19. exd5 {[%emt 0:00:09]} Rxd5 {[%emt 0:00:22]} 20. Qg4 {[%emt 0:00:26]} Bf8 {[%emt 0:02:18]} 21. Nf4 {[%emt 0:03:32]} Rd6 {[%emt 0:00:56]} 22. Rad1 {[%emt 0:04:26]} Rad8 {[%emt 0:03:44]} 23. Rxd6 {[%emt 0:01:39]} Rxd6 {[%emt 0:00:09]} 24. Re8 {[%emt 0:00:45]} Nd4 {[%emt 0:00:19]} 25. Bxd4 {[%emt 0:00:28]} Rxd4 {[%emt 0:00:28]} 26. Ne6 {[%emt 0:00:33]} Rd1+ {[%emt 0:01:07]} 27. Qxd1 {[%emt 0:00:08]} fxe6 {[%emt 0:00:03]} 28. Qd7 {[%emt 0:01:26]} Qf3 {[%emt 0:01:28]} 29. Qxe6+ {[%emt 0:00:14]} Kh8 {[%emt 0:00:32]} 30. h4 {[%emt 0:00:40]} c5 {[%emt 0:00:32]} 31. Qd6 {[%emt 0:01:04]} Kg8 {[%emt 0:00:15]} 32. Qxc5 {[%emt 0:00:24]} a6 {[%emt 0:00:20]} 33. a4 {[%emt 0:00:43]} bxa4 {[%emt 0:00:13]} 34. bxa4 {[%emt 0:00:18]} h6 {[%emt 0:00:32]} 35. Qc4+ {[%emt 0:00:47]} Kh7 {[%emt 0:00:18]} 36. Qe4+ {[%emt 0:00:28]} Qxe4 {[%emt 0:00:05]} 37. Rxe4 {[%emt 0:00:04]} a5 {[%emt 0:00:05]} 38. Re5 {[%emt 0:00:07]} Bb4 {[%emt 0:00:05]} 39. h5 {[%emt 0:00:09]} Kg8 {[%emt 0:00:35]} 40. Kg2 {[%emt 0:00:10]} Kf7 {[%emt 0:00:05]} 41. Kf3 {[%emt 0:30:15]} Kf6 {[%emt 0:30:06]} 42. Rb5 {[%emt 0:00:17]} Bc3 {[%emt 0:00:39]} 43. Ke4 {[%emt 0:00:25]} Be1 {[%emt 0:00:15]} 44. g4 {[%emt 0:00:03]} Bd2 {[%emt 0:00:16]} 45. f4 {[%emt 0:00:12]} Ke6 {[%emt 0:00:10]} 46. Rb6+ {[%emt 0:00:10]} Ke7 {[%emt 0:00:08]} 47. Ra6 {[%emt 0:00:09]} Bc3 {[%emt 0:00:09]} 48. Kf5 {[%emt 0:00:07]} Bd2 {[%emt 0:00:16]} 49. Kg6 {[%emt 0:00:15]} Bc3 {[%emt 0:00:05]} 50. g5 {[%emt 0:00:10]} hxg5 {[%emt 0:00:09]} 51. fxg5 {[%emt 0:00:05]} Kd7 {[%emt 0:00:07]} 52. h6 {[%emt 0:00:07]} gxh6 {[%emt 0:00:03]} 53. gxh6 {[%emt 0:00:06]} Kc7 {[%emt 0:00:04]} 54. h7 {[%emt 0:00:06]} 1-0